[Event "GER-ch Youth-U18w 2022"]
[Site "Willingen"]
[Date "2022.06.08"]
[Round "5.3"]
[White "Falke, Ornella"]
[Black "Schneider, Katharina"]
[Result "1-0"]
[ECO "C44"]
[WhiteElo "1844"]
[BlackElo "1810"]
[Annotator "NA RC COMBH"]
[PlyCount "85"]
[EventDate "2022.06.05"]
[EventType "swiss"]
[EventRounds "9"]
[EventCountry "GER"]
[SourceTitle "playchess.com"]
[Source "ChessBase"]
[SourceQuality "1"]
[TimeControl "40/4500+30:900+30"]

1. e4 {[%emt 0:00:00]} e5 {[%emt 0:00:00]} 2. Nf3 {[%emt 0:00:00]} Nc6 {[%emt 0:00:00]} 3. d4 {[%emt 0:00:00]} exd4 {[%emt 0:00:00]} 4. Nxd4 {[%emt 0:00:00]} Bb4+ {[%emt 0:00:00]} 5. c3 {[%emt 0:00:00]} Bc5 {[%emt 0:00:00]} 6. Nxc6 {[%emt 0:00:00]} bxc6 {[%emt 0:00:00]} 7. Bd3 {[%emt 0:04:40]} d6 {[%emt 0:00:00]} 8. O-O {[%emt 0:01:10]} Nf6 {[%emt 0:00:00]} 9. Nd2 {[%emt 0:02:33]} Ng4 {[%emt 0:08:59]} 10. Nf3 {[%emt 0:05:22]} Qe7 {[%emt 0:08:41]} 11. Qe2 {[%emt 0:03:35]} O-O {[%emt 0:03:53]} 12. h3 {[%emt 0:03:07]} Ne5 {[%emt 0:02:04]} 13. Nxe5 {[%emt 0:01:28]} Qxe5 {[%emt 0:06:42]} 14. Kh1 {[%emt 0:01:48]} Qe7 {[%emt 0:07:14]} 15. Bf4 {[%emt 0:05:19]} Kh8 {[%emt 0:05:16]} 16. Rae1 {[%emt 0:05:02]} Be6 {[%emt 0:05:54]} 17. Ba6 {[%emt 0:03:36]} Rab8 {[%emt 0:14:53]} 18. b4 {[%emt 0:07:00]} Bxb4 {[%emt 0:00:36]} 19. cxb4 {[%emt 0:00:11]} Rxb4 {[%emt 0:00:06]} 20. Rb1 {[%emt 0:03:53]} Ra4 {[%emt 0:04:50]} 21. Bd3 {[%emt 0:06:37]} Qf6 {[%emt 0:03:56]} 22. Bc1 {[%emt 0:06:05]} Rxa2 {[%emt 0:03:00]} 23. Bb2 {[%emt 0:00:08]} Qh4 {[%emt 0:02:23]} 24. Kh2 {[%emt 0:03:39]} Ra5 {[%emt 0:04:25]} 25. f4 {[%emt 0:04:45]} f5 {[%emt 0:01:19]} 26. Qd2 {[%emt 0:01:34]} Ra4 {[%emt 0:00:41]} 27. Qc3 {[%emt 0:01:57]} Qe7 {[%emt 0:00:06]} 28. Qc2 {[%emt 0:03:22]} Ra5 {[%emt 0:00:49]} 29. e5 {[%emt 0:01:26]} Rc5 {[%emt 0:00:57]} 30. Qa4 {[%emt 0:01:30]} a5 $18 {[%emt 0:01:12]} 31. Rfe1 {[%emt 0:00:54]} Qd7 {[%emt 0:00:14]} 32. Re3 {[%emt 0:04:07]} Rb8 {[%emt 0:00:58]} 33. exd6 {[%emt 0:00:09]} Rb4 {[%emt 0:00:51]} 34. Qd1 {[%emt 0:00:50]} cxd6 {[%emt 0:01:08]} 35. Qe2 {[%emt 0:00:26]} Bg8 {[%emt 0:00:23]} 36. Re7 {[%emt 0:00:28]} Rxb2 {[%emt 0:00:17]} 37. Rxb2 {[%emt 0:00:40]} Qd8 {[%emt 0:00:16]} 38. Re8 {[%emt 0:00:43]} Qf6 {[%emt 0:00:14]} 39. Rbb8 {[%emt 0:00:15]} h6 {[%emt 0:00:25]} 40. Rxg8+ {[%emt 0:00:11]} Kh7 {[%emt 0:00:03]} 41. Qe8 {[%emt 0:15:59]} g5 {[%emt 0:15:35]} 42. Rb7+ {[%emt 0:00:11]} Qg7 {[%emt 0:00:18]} 43. Rbxg7# {[%emt 0:00:09]} 1-0

[Event "GER-ch Youth-U18w 2022"]
[Site "Willingen"]
[Date "2022.06.08"]
[Round "5.4"]
[White "Goetten Wagner, Julia"]
[Black "Cheredzhiyska, Iva"]
[Result "0-1"]
[ECO "C54"]
[WhiteElo "1631"]
[BlackElo "1696"]
[Annotator "NA RC COMBH"]
[PlyCount "102"]
[EventDate "2022.06.05"]
[EventType "swiss"]
[EventRounds "9"]
[EventCountry "GER"]
[SourceTitle "playchess.com"]
[Source "ChessBase"]
[SourceQuality "1"]
[TimeControl "40/4500+30:900+30"]

1. e4 {[%emt 0:00:00]} e5 {[%emt 0:00:00]} 2. Nf3 {[%emt 0:00:00]} Nc6 {[%emt 0:00:00]} 3. Bc4 {[%emt 0:00:00]} Bc5 {[%emt 0:00:00]} 4. c3 {[%emt 0:00:00]} Nf6 {[%emt 0:00:00]} 5. d3 {[%emt 0:00:00]} d6 {[%emt 0:00:00]} 6. Nbd2 {[%emt 0:00:00]} a6 {[%emt 0:00:00]} 7. Bb3 {[%emt 0:00:00]} Bd7 {[%emt 0:00:00]} 8. Nf1 {[%emt 0:00:00]} h6 {[%emt 0:06:42]} 9. Be3 {[%emt 0:00:00]} Ba7 {[%emt 0:08:21]} 10. Ng3 {[%emt 0:00:54]} Qe7 {[%emt 0:04:39]} 11. Qe2 {[%emt 0:04:56]} O-O-O {[%emt 0:04:02]} 12. a4 {[%emt 0:09:53]} g5 {[%emt 0:09:59]} 13. Nxg5 {[%emt 0:12:14]} hxg5 {[%emt 0:10:31]} 14. Bxg5 {[%emt 0:00:07]} Rdg8 {[%emt 0:02:34]} 15. h4 {[%emt 0:00:49]} Bg4 {[%emt 0:01:36]} 16. f3 {[%emt 0:07:46]} Be6 {[%emt 0:00:32]} 17. Bc2 {[%emt 0:01:49]} Nb8 {[%emt 0:06:29]} 18. O-O-O {[%emt 0:12:05]} Nbd7 {[%emt 0:00:09]} 19. f4 {[%emt 0:00:36]} exf4 {[%emt 0:00:06]} 20. Nh5 {[%emt 0:00:09]} Qd8 {[%emt 0:00:52]} 21. Nxf6 {[%emt 0:08:13]} Nxf6 {[%emt 0:00:06]} 22. Qf1 {[%emt 0:02:37]} Be3+ {[%emt 0:06:29]} 23. Kb1 {[%emt 0:00:32]} f3 {[%emt 0:00:51]} 24. gxf3 {[%emt 0:03:22]} Bxg5 {[%emt 0:00:09]} 25. hxg5 {[%emt 0:00:22]} Rxh1 {[%emt 0:02:07]} 26. Qxh1 {[%emt 0:00:13]} Rxg5 {[%emt 0:00:53]} 27. f4 {[%emt 0:01:19]} Rg7 {[%emt 0:01:39]} 28. f5 {[%emt 0:01:46]} Bd7 {[%emt 0:00:19]} 29. d4 {[%emt 0:02:34]} Rh7 {[%emt 0:02:38]} 30. Qf1 {[%emt 0:03:47]} Qe8 {[%emt 0:00:57]} 31. Qc4 {[%emt 0:01:50]} Nxe4 {[%emt 0:01:52]} 32. f6 {[%emt 0:01:06]} Rh1 {[%emt 0:02:17]} 33. Ka2 {[%emt 0:01:27]} Rxd1 {[%emt 0:00:22]} 34. Bxd1 {[%emt 0:00:08]} Nxf6 {[%emt 0:00:57]} 35. Qb4 {[%emt 0:01:17]} Nd5 {[%emt 0:04:55]} 36. Qa5 {[%emt 0:00:37]} Nb6 {[%emt 0:00:25]} 37. b3 {[%emt 0:00:34]} f5 {[%emt 0:01:47]} 38. c4 {[%emt 0:00:22]} Qf7 {[%emt 0:02:37]} 39. c5 {[%emt 0:01:46]} dxc5 {[%emt 0:00:48]} 40. dxc5 {[%emt 0:00:19]} Nd5 {[%emt 0:01:58]} 41. Bf3 {[%emt 0:16:19]} Bc6 {[%emt 0:16:07]} 42. Ka3 {[%emt 0:01:21]} Ne7 {[%emt 0:00:00]} 43. Bxc6 {[%emt 0:00:00]} Nxc6 {[%emt 0:00:00]} 44. Qc3 {[%emt 0:00:00]} Kb8 {[%emt 0:00:00]} 45. b4 {[%emt 0:00:00]} f4 {[%emt 0:00:00]} 46. Qh8+ {[%emt 0:00:00]} Ka7 {[%emt 0:00:00]} 47. b5 {[%emt 0:00:00]} axb5 {[%emt 0:00:00]} 48. axb5 {[%emt 0:00:00]} Na5 {[%emt 0:00:00]} 49. Qc3 {[%emt 0:00:00]} Qb3+ {[%emt 0:00:00]} 50. Qxb3 {[%emt 0:00:00]} Nxb3 {[%emt 0:00:00]} 51. Kxb3 {[%emt 0:00:00]} f3 {[%emt 0:00:00]} 0-1

[Event "GER-ch Youth-U18w 2022"]
[Site "Willingen"]
[Date "2022.06.08"]
[Round "5.5"]
[White "Dartmann Aubanell, Catriona"]
[Black "Basovskiy, Jana"]
[Result "1-0"]
[ECO "B13"]
[WhiteElo "1874"]
[BlackElo "1938"]
[Annotator "TA"]
[PlyCount "119"]
[EventDate "2022.06.05"]
[EventType "swiss"]
[EventRounds "9"]
[EventCountry "GER"]
[SourceTitle "playchess.com"]
[Source "ChessBase"]
[SourceQuality "1"]
[TimeControl "40/4500+30:900+30"]

{[%evp 11,119,22,25,17,42,31,41,17,39,28,36,-14,9,-3,21,0,27,20,18,31,44,37,44,-8,-9,-61,-59,-50,0,0,47,43,36,29,58,61,45,36,168,140,289,289,291,118,114,18,4,0,6,0,82,30,27,-16,0,0,67,77,325,325,1142,561,869,261,628,595,762,750,716,687,644,593,606,593,593,593,593,422,417,417,588,587,593,593,593,468,593,468,605,461,573,538,510,504,842,837,820,801,795,770,746,722,1499,1392,1922,1830,29984,29985,29983,29984]} 1. e4 {[%emt 0:00:00]} c6 {[%emt 0:00:00]} 2. d4 {[%emt 0:00:00]} d5 {[%emt 0:00:00]} 3. exd5 {[%emt 0:00:00]} cxd5 {[%emt 0:00:00]} 4. Bd3 {[%emt 0:00:00]} Nc6 {[%emt 0:00:00]} 5. c3 {[%emt 0:00:00]} Qc7 {[%emt 0:00:00]} 6. h3 {[%emt 0:00:00]} Nf6 {[%emt 0:00:00] 6...g6 might become the main line.} 7. Ne2 {[%emt 0:00:00] B13: Caro-Kann: Exchange Variation and Panov-Botvinnik Attack.} g6 {[%emt 0:00:00]} 8. Bf4 {[%emt 0:00:00]} Qb6 {[%emt 0:00:00] [#]} 9. Qc1 $146 {[%emt 0:00:00] White is slightly better.} ({Predecessor:} 9. Qb3 Bf5 10. Bxf5 gxf5 11. Na3 Rc8 12. f3 h5 13. h4 e6 14. Qxb6 axb6 15. Nc2 {½-½ (59) Lupulescu,C (2617)-David,A (2549) Rio Achaea 2018}) 9... Bf5 {[%emt 0:00:00]} 10. Bxf5 {[%emt 0:02:07]} gxf5 {[%emt 0:00:00]} 11. Ng3 {[%emt 0:03:19]} (11. O-O $14) 11... e6 {[%emt 0:00:00]} 12. Nd2 {[%emt 0:03:56]} Be7 {[%emt 0:15:22]} 13. Nf3 {[%emt 0:05:17]} Rg8 {[%emt 0:00:57]} 14. O-O {[%emt 0:08:27]} Ne4 {[%emt 0:06:36]} 15. Rd1 {[%emt 0:15:29]} Na5 {[%emt 0:12:06]} 16. b3 {[%emt 0:09:23]} Rc8 {[%emt 0:01:10]} 17. Nxe4 {[%emt 0:01:00]} ({White should play} 17. c4 $14) 17... fxe4 $11 {[%emt 0:06:27]} 18. Nd2 {[%emt 0:04:36]} (18. Ne1 $11) 18... Nc6 $15 {[%emt 0:00:42][%cal Oc6d4,Ba5c6,Bc6e7,Be7g6][%mdl 32] [#] And now ...Nxd4! would win.} 19. Qb2 {[%emt 0:05:47]} Qa6 {[%emt 0:07:22]} (19... Qd8 $15) 20. Nf1 $11 {[%emt 0:03:44]} Bf6 {[%emt 0:04:20]} (20... Kf8 $11) 21. Ne3 {[%emt 0:01:58]} Qb6 {[%emt 0:02:43]} 22. Qe2 {[%emt 0:01:53]} Ne7 {[%emt 0:05:21]} 23. Rac1 {[%emt 0:03:53]} Ng6 {[%emt 0:01:03]} 24. Bg3 {[%emt 0:00:23]} Rd8 {[%emt 0:09:38]} ({Better is} 24... Ne7 $1 $14) 25. Qh5 {[%emt 0:01:53]} Qa6 {[%emt 0:04:45]} (25... a6 $16 26. Ng4 (26. Qxh7 $2 Rh8 $19) 26... Bg7 27. Qxh7 Kf8) 26. Ng4 $18 {[%emt 0:02:21]} (26. Qxh7 $2 Rh8 27. Ng4 Rxh7 $19) 26... Be7 {[%emt 0:00:15]} 27. Be5 {[%emt 0:01:07]} (27. Qxh7 Rh8 28. Qg7 Bf8 $11) (27. Bc7 Rc8 28. Be5 (28. Qxh7 $2 Rh8 $19) 28... Nf8 $16) (27. c4 $18 {and White stays clearly on top.}) 27... Nxe5 $16 {[%emt 0:01:50]} 28. Nxe5 {[%emt 0:00:37]} (28. dxe5 $16 Rh8 29. Nf6+ Bxf6 30. exf6) 28... Rg7 $11 {[%emt 0:00:41]} 29. Rc2 {[%emt 0:07:12]} Qd6 {[%emt 0:03:59]} 30. Re2 {[%emt 0:02:26]} Rc8 {[%emt 0:02:14]} (30... Kf8 $11 {remains equal.}) 31. Re3 {[%emt 0:00:25] White is more active.} (31. f3 $16) 31... Bf6 {[%emt 0:00:22]} 32. Ng4 {[%emt 0:01:58]} Bd8 {[%emt 0:00:37]} 33. Rg3 {[%emt 0:00:32]} Qf8 {[%emt 0:00:33]} ({Black should try} 33... Kf8 $11) 34. c4 $1 $14 {[%emt 0:01:04] Black is now going downhill.} dxc4 {[%emt 0:01:28]} (34... Rg5 $16 35. Qxh7 Qg7 36. Qxg7 Rxg7) 35. Qb5+ $18 {[%emt 0:00:55]} Ke7 $2 {[%emt 0:00:36]} (35... Rc6) 36. Qxb7+ {[%emt 0:00:30]} (36. d5 $142 {[%cal Rd5d6]} Rxg4 37. Qb4+ Kf6 38. Qxf8 Rxg3 39. dxe6) 36... Rc7 {[%emt 0:00:10]} 37. Qxe4 {[%emt 0:00:54]} (37. Qb4+ Ke8 38. Qa4+ Ke7 39. d5) 37... Rd7 $2 {[%emt 0:01:34]} (37... f5 38. Qe5 fxg4) 38. Ne5 {[%emt 0:00:34]} ({Weaker is} 38. Qe5 Bc7 39. Qf6+ (39. Qc5+ Bd6 $16) 39... Ke8 $18) 38... Rd6 {[%emt 0:00:54]} 39. Qb7+ {[%emt 0:00:36]} Ke8 {[%emt 0:00:20]} 40. Qb5+ {[%emt 0:00:09]} Ke7 {[%emt 0:00:06]} 41. Nc6+ {[%emt 0:00:00]} Rxc6 {[%emt 0:00:00]} 42. Qxc6 {[%emt 0:00:00]} Rxg3 {[%emt 0:00:00]} 43. Qc5+ {[%emt 0:00:00]} Ke8 {[%emt 0:00:00] Hoping for ...Qxc5.} 44. Qxf8+ {[%emt 0:00:00]} Kxf8 {[%emt 0:00:00]} 45. fxg3 {[%emt 0:00:00]} cxb3 {[%emt 0:00:00]} (45... c3 {might work better.} 46. Rc1 Bb6) 46. axb3 {[%emt 0:00:00][%mdl 4096] Endgame KR-KB} Bb6 {[%emt 0:00:00]} 47. Kf1 {[%emt 0:00:00]} Ke7 {[%emt 0:00:00]} 48. Ke2 {[%emt 0:00:00]} Kd6 {[%emt 0:00:00]} 49. Kd3 {[%emt 0:00:00]} Kd5 {[%emt 0:00:00]} 50. Kc3 {[%emt 0:00:00]} Ba5+ {[%emt 0:00:00]} 51. b4 {[%emt 0:00:00]} Bb6 {[%emt 0:00:00]} 52. g4 {[%emt 0:00:00]} f5 {[%emt 0:00:00]} (52... h6 $142 53. Rd2 f6) 53. gxf5 {[%emt 0:00:00]} exf5 {[%emt 0:00:00]} 54. Rd3 {[%emt 0:09:01]} f4 {[%emt 0:00:00]} 55. Rd1 {[%emt 0:01:21]} h6 {[%emt 0:00:00]} 56. Rd3 {[%emt 0:02:16]} a5 {[%emt 0:02:40]} 57. b5 {[%emt 0:00:22][%cal Bb4b5,Bb5b6][%mdl 32]} a4 {[%emt 0:00:32]} 58. Kb4 {[%emt 0:01:31]} Bxd4 {[%emt 0:00:18] [#]} 59. Rxd4+ $1 {[%emt 0:01:10][%mdl 512]} Kxd4 {[%emt 0:00:24]} 60. b6 {[%emt 0:00:07] Weighted Error Value: White=0.55/Black=0.61} 1-0

[Event "GER-ch Youth-U18w 2022"]
[Site "Willingen"]
[Date "2022.06.08"]
[Round "5.6"]
[White "Gröschel, Karoline"]
[Black "Orlova, Alicia"]
[Result "1/2-1/2"]
[ECO "C72"]
[WhiteElo "1546"]
[BlackElo "1724"]
[Annotator "NA RC COMBH"]
[PlyCount "106"]
[EventDate "2022.06.05"]
[EventType "swiss"]
[EventRounds "9"]
[EventCountry "GER"]
[SourceTitle "playchess.com"]
[Source "ChessBase"]
[SourceQuality "1"]
[TimeControl "40/4500+30:900+30"]

1. e4 {[%emt 0:00:00]} e5 {[%emt 0:00:00]} 2. Nf3 {[%emt 0:00:00]} Nc6 {[%emt 0:00:00]} 3. Bb5 {[%emt 0:00:00]} a6 {[%emt 0:00:00]} 4. Ba4 {[%emt 0:00:00]} d6 {[%emt 0:00:00]} 5. O-O {[%emt 0:00:00]} Be7 {[%emt 0:00:00]} 6. h3 {[%emt 0:00:00]} Nf6 {[%emt 0:00:00]} 7. Re1 {[%emt 0:00:00]} O-O {[%emt 0:00:00]} 8. c3 {[%emt 0:00:00]} Re8 {[%emt 0:00:00]} 9. d4 {[%emt 0:00:00]} b5 {[%emt 0:00:00]} 10. Bb3 {[%emt 0:00:00]} exd4 {[%emt 0:00:00]} 11. cxd4 {[%emt 0:00:00]} d5 {[%emt 0:01:57]} 12. e5 {[%emt 0:02:43]} Ne4 {[%emt 0:00:54]} 13. Nbd2 {[%emt 0:02:01]} Ng5 14. Nxg5 {[%emt 0:12:17]} Bxg5 {[%emt 0:04:37]} 15. Nf3 {[%emt 0:00:14]} Be7 {[%emt 0:01:07]} 16. Be3 {[%emt 0:06:42]} Bf5 {[%emt 0:03:40]} 17. Rc1 {[%emt 0:05:52]} Na5 {[%emt 0:09:04]} 18. Bc2 {[%emt 0:00:32]} Bxc2 {[%emt 0:00:41]} 19. Qxc2 {[%emt 0:01:02]} Rc8 {[%emt 0:06:28]} 20. b3 {[%emt 0:05:15]} c6 {[%emt 0:11:36]} 21. Qb2 {[%emt 0:11:39]} Qb6 {[%emt 0:02:34]} 22. Rc2 {[%emt 0:04:53]} Rc7 {[%emt 0:00:44]} 23. Rec1 {[%emt 0:00:52]} Rec8 {[%emt 0:00:59]} 24. Ne1 {[%emt 0:02:32]} b4 {[%emt 0:15:25]} 25. Nd3 {[%emt 0:03:26]} Nb7 26. Bf4 {[%emt 0:07:47]} Qb5 {[%emt 0:14:39]} 27. Rd1 {[%emt 0:01:41]} Rd7 {[%emt 0:06:45]} 28. Be3 {[%emt 0:01:26]} Nd8 {[%emt 0:01:30]} 29. Qc1 {[%emt 0:04:50]} Ne6 {[%emt 0:00:34]} 30. f4 {[%emt 0:02:22]} f5 {[%emt 0:02:21]} 31. Qd2 {[%emt 0:01:40]} c5 {[%emt 0:01:12]} 32. Nxc5 {[%emt 0:07:16]} Nxc5 {[%emt 0:01:49]} 33. dxc5 {[%emt 0:00:08]} Bxc5 {[%emt 0:01:10]} 34. Bxc5 {[%emt 0:01:00]} Rxc5 {[%emt 0:00:05]} 35. Rxc5 {[%emt 0:01:37]} Qxc5+ {[%emt 0:00:02]} 36. Qd4 {[%emt 0:00:08]} Qxd4+ {[%emt 0:00:52]} 37. Rxd4 {[%emt 0:00:10]} a5 {[%emt 0:00:16]} 38. g4 {[%emt 0:00:30]} g6 {[%emt 0:00:14]} 39. Kf2 {[%emt 0:01:01]} Kf7 {[%emt 0:01:01]} 40. Ke3 {[%emt 0:00:34]} Ke6 {[%emt 0:00:17]} 41. g5 {[%emt 0:17:41]} Rc7 {[%emt 0:15:18]} 42. Kd2 {[%emt 0:00:00]} h6 {[%emt 0:00:00]} 43. h4 {[%emt 0:00:00]} hxg5 {[%emt 0:00:00]} 44. hxg5 {[%emt 0:00:00]} Rh7 {[%emt 0:00:00]} 45. Kc2 {[%emt 0:00:00]} Rc7+ {[%emt 0:00:00]} 46. Kd2 {[%emt 0:00:00]} Rh7 {[%emt 0:00:00]} 47. Kc2 {[%emt 0:00:00]} Rh4 {[%emt 0:00:00]} 48. Kc1 {[%emt 0:00:00]} Rh3 {[%emt 0:00:00]} 49. Kc2 {[%emt 0:00:00]} Rc3+ {[%emt 0:00:00]} 50. Kd2 {[%emt 0:00:00]} Rc5 {[%emt 0:00:00]} 51. Ke3 {[%emt 0:00:00]} Rc2 {[%emt 0:00:00]} 52. Rd2 {[%emt 0:00:00]} Rc3+ {[%emt 0:00:00]} 53. Ke2 {[%emt 0:00:00]} Rc7 {[%emt 0:00:00]} 1/2-1/2

[Event "GER-ch Youth-U18w 2022"]
[Site "Willingen"]
[Date "2022.06.08"]
[Round "5.7"]
[White "Kroemer, Paulina"]
[Black "Yue, Qizhou"]
[Result "1/2-1/2"]
[ECO "E11"]
[WhiteElo "1583"]
[BlackElo "1715"]
[Annotator "NA RC COMBH"]
[PlyCount "71"]
[EventDate "2022.06.05"]
[EventType "swiss"]
[EventRounds "9"]
[EventCountry "GER"]
[SourceTitle "playchess.com"]
[Source "ChessBase"]
[SourceQuality "1"]
[TimeControl "40/4500+30:900+30"]

1. d4 {[%emt 0:00:00]} Nf6 {[%emt 0:00:00]} 2. Nf3 {[%emt 0:00:00]} e6 {[%emt 0:00:00]} 3. c4 {[%emt 0:00:00]} Bb4+ {[%emt 0:00:00]} 4. Nbd2 {[%emt 0:00:00]} b6 {[%emt 0:00:00]} 5. a3 {[%emt 0:00:00]} Bxd2+ {[%emt 0:00:00]} 6. Qxd2 {[%emt 0:00:00]} d5 {[%emt 0:00:00]} 7. b3 {[%emt 0:00:00]} O-O {[%emt 0:00:00]} 8. e3 {[%emt 0:00:00]} Nbd7 {[%emt 0:00:00]} 9. Be2 {[%emt 0:00:00]} a5 {[%emt 0:00:00]} 10. O-O {[%emt 0:00:00]} Ba6 {[%emt 0:01:17]} 11. Bb2 {[%emt 0:00:00]} Qe7 {[%emt 0:12:45]} 12. Rac1 {[%emt 0:03:45]} c5 {[%emt 0:05:24]} 13. cxd5 {[%emt 0:14:14]} Bxe2 {[%emt 0:02:02]} 14. Qxe2 {[%emt 0:02:24]} exd5 {[%emt 0:01:09]} 15. a4 {[%emt 0:08:44]} Rfc8 {[%emt 0:07:26]} 16. Ba3 {[%emt 0:09:56]} Qe6 {[%emt 0:05:59]} 17. dxc5 {[%emt 0:14:07]} bxc5 {[%emt 0:00:54]} 18. Qc2 {[%emt 0:06:23]} h6 {[%emt 0:09:37]} 19. Rfd1 {[%emt 0:04:26]} Rab8 {[%emt 0:02:52]} 20. Qc3 {[%emt 0:06:04]} d4 {[%emt 0:15:54]} 21. exd4 {[%emt 0:01:52]} Rxb3 {[%emt 0:00:23]} 22. d5 {[%emt 0:00:14]} Qb6 {[%emt 0:03:49]} 23. Qa1 {[%emt 0:01:10]} Qb7 {[%emt 0:03:40]} 24. Qa2 {[%emt 0:02:00]} Nxd5 {[%emt 0:02:09]} 25. Nd4 {[%emt 0:01:14]} Rxa3 {[%emt 0:05:24]} 26. Qxa3 {[%emt 0:00:36]} cxd4 {[%emt 0:00:10]} 27. Rxc8+ {[%emt 0:04:26]} Qxc8 {[%emt 0:00:07]} 28. Rxd4 {[%emt 0:00:04]} N7f6 {[%emt 0:01:41]} 29. h3 {[%emt 0:00:50]} Qc2 {[%emt 0:03:09]} 30. Qd3 {[%emt 0:02:20]} Qc1+ {[%emt 0:02:24]} 31. Kh2 {[%emt 0:02:04]} Qc7+ {[%emt 0:00:14]} 32. Kg1 {[%emt 0:00:16]} Qe5 {[%emt 0:00:42]} 33. Rc4 {[%emt 0:02:24]} Qe1+ {[%emt 0:00:51]} 34. Kh2 {[%emt 0:00:06]} Qe5+ {[%emt 0:00:23]} 35. Kg1 {[%emt 0:00:09]} Qe1+ {[%emt 0:00:35]} 36. Kh2 {[%emt 0:00:10]} 1/2-1/2

[Event "GER-ch Youth-U18w 2022"]
[Site "Willingen"]
[Date "2022.06.08"]
[Round "5.8"]
[White "Jacoby, Angelina"]
[Black "Berghold, Lotta"]
[Result "1/2-1/2"]
[ECO "A45"]
[WhiteElo "1535"]
[BlackElo "1482"]
[Annotator "NA RC COMBH"]
[PlyCount "81"]
[EventDate "2022.06.05"]
[EventType "swiss"]
[EventRounds "9"]
[EventCountry "GER"]
[SourceTitle "playchess.com"]
[Source "ChessBase"]
[SourceQuality "1"]
[TimeControl "40/4500+30:900+30"]

1. d4 {[%emt 0:00:00]} Nf6 {[%emt 0:00:00]} 2. Bf4 {[%emt 0:00:00]} d6 {[%emt 0:00:00]} 3. Nf3 {[%emt 0:00:00]} g6 {[%emt 0:00:00]} 4. e3 {[%emt 0:00:00]} Bg7 {[%emt 0:00:00]} 5. h3 {[%emt 0:00:00]} O-O {[%emt 0:00:00]} 6. Be2 {[%emt 0:00:00]} Nbd7 {[%emt 0:00:00]} 7. O-O {[%emt 0:00:00]} Re8 {[%emt 0:00:00]} 8. Bh2 {[%emt 0:00:00]} c5 {[%emt 0:00:00]} 9. c4 {[%emt 0:00:00]} Qb6 {[%emt 0:02:17]} 10. Qc1 {[%emt 0:07:21]} Ne4 {[%emt 0:05:56]} 11. Rd1 {[%emt 0:04:45]} Ndf6 {[%emt 0:21:16]} 12. Nbd2 {[%emt 0:27:14]} Bd7 {[%emt 0:08:08]} 13. Qc2 {[%emt 0:05:15]} Nxd2 {[%emt 0:01:43]} 14. Rxd2 {[%emt 0:02:07]} Bf5 {[%emt 0:03:31]} 15. Bd3 {[%emt 0:03:50]} Bxd3 {[%emt 0:00:15]} 16. Rxd3 {[%emt 0:03:11]} cxd4 {[%emt 0:02:23]} 17. Nxd4 {[%emt 0:12:48]} a6 {[%emt 0:05:05]} 18. Rc1 {[%emt 0:02:18]} Nd7 {[%emt 0:06:16]} 19. b3 {[%emt 0:03:24]} Rac8 {[%emt 0:02:30]} 20. Qd1 {[%emt 0:01:13]} Rc7 {[%emt 0:04:27]} 21. Rd2 {[%emt 0:00:34]} Rec8 {[%emt 0:01:48]} 22. Ne2 {[%emt 0:00:23]} Nf6 {[%emt 0:04:23]} 23. Nc3 {[%emt 0:00:44]} Qc6 {[%emt 0:01:21]} 24. Bg3 Ne4 {[%emt 0:02:12]} 25. Nxe4 {[%emt 0:02:38]} Qxe4 {[%emt 0:00:05]} 26. Qc2 {[%emt 0:00:30]} Qe6 {[%emt 0:00:54]} 27. Qd3 {[%emt 0:00:27]} b5 {[%emt 0:00:32]} 28. Rdc2 {[%emt 0:00:16]} b4 {[%emt 0:03:41]} 29. f3 {[%emt 0:02:51]} Rc5 {[%emt 0:03:14]} 30. Bf2 {[%emt 0:00:34]} Bh6 {[%emt 0:03:34]} 31. Kf1 {[%emt 0:04:22]} Re5 {[%emt 0:01:43]} 32. Re1 {[%emt 0:01:55]} Qf5 {[%emt 0:02:06]} 33. Qxf5 {[%emt 0:00:19]} Rxf5 {[%emt 0:00:06]} 34. e4 {[%emt 0:00:26]} Rf6 {[%emt 0:00:21]} 35. Rd1 {[%emt 0:00:27]} Re6 {[%emt 0:01:31]} 36. Rd5 {[%emt 0:01:17]} Bg7 {[%emt 0:00:19]} 37. Be1 {[%emt 0:00:19]} Rb8 {[%emt 0:00:40]} 38. Rc1 {[%emt 0:01:12]} Re5 {[%emt 0:00:45]} 39. Rcd1 {[%emt 0:00:39]} Rb6 {[%emt 0:01:00]} 40. Bf2 {[%emt 0:00:53]} Rc6 {[%emt 0:00:45]} 41. Be1 {[%emt 0:00:00]} 1/2-1/2